fUSD/lending_fUSD_20251014
["ID","MTS","AMOUNT","RATE_DAILY","PERIOD"]
[391165445,1760405438615,-4712.62579405,0.00027158,2]
[391165634,1760405440403,-2207.25255416,0.00027158,2]
[391165637,1760405440414,-419.68000009,0.00027158,2]
[391165640,1760405440425,-15175.06974318,0.00027158,2]
[391165644,1760405440437,-62592.71888187,0.00027158,2]
[391165647,1760405440446,-19890.73972864,0.00027159,2]
[391165650,1760405440455,-839.27558878,0.00027162,2]
[391165652,1760405440464,-16351.73972879,0.00027172,2]
[391165655,1760405440473,-16351.73972879,0.00027175,2]
[391165658,1760405440483,-37883.03837969,0.00027179,2]
[391165663,1760405440498,-2230.33211308,0.00027185,2]
[391165666,1760405440513,-1034.355,0.00027185,2]
[391165669,1760405440524,-12197.41395496,0.00027185,2]
[391165673,1760405440535,-235574.06126823,0.00027191,2]
[391165677,1760405440547,-43138.71741272,0.00027191,2]
[391165680,1760405440556,-15462.10106804,0.00027192,2]
[391165683,1760405440566,-1219.19464187,0.00027193,2]
[391165686,1760405440575,-1219.19464187,0.00027195,2]
[391165689,1760405440585,-1219.19464187,0.00027196,2]
[391165692,1760405440594,-179.0,0.00027235,120]
[391165695,1760405440603,-430.06017821,0.00027397,7]
[391165697,1760405440614,-748.44,0.00027397,7]
[391165700,1760405440623,-748.44,0.00027397,7]
[391165703,1760405440632,-748.44,0.00027397,7]
[391165706,1760405440641,-166.66,0.0002742,30]
[391165709,1760405440650,-152.0,0.00027511,5]
[391165713,1760405440661,-523.07,0.00027707,30]
[391165715,1760405440670,-500.0,0.00027761,7]
[391165718,1760405440679,-954.0,0.00027904,7]
[391165721,1760405440688,-166.66,0.00027974,30]
[391165724,1760405440704,-600.0,0.00028,120]
[391165727,1760405440714,-600.0,0.00028,120]
[391165730,1760405440724,-322.6107,0.00028034,2]
[391165733,1760405440735,-257.91778498,0.00028034,2]
[391165736,1760405440744,-1100.0,0.00028035,7]
[391165739,1760405440753,-1904.65976997,0.00028072,2]
[391165742,1760405440762,-1049.66369368,0.0002812,9]
[391165745,1760405440776,-152.0,0.00028133,6]
[391165748,1760405440796,-2948.525,0.00028134,18]
[391165750,1760405440809,-1475.0,0.00028134,2]
[391165752,1760405440818,-177.59905281,0.00028134,18]
[391165754,1760405440828,-1475.0,0.00028205,2]
[391165756,1760405440837,-897.41,0.00028218,2]
[391165758,1760405440846,-150.0,0.00028218,2]
[391165760,1760405440856,-476.16,0.00028397,2]
[391165762,1760405440865,-3433.0,0.00028398,2]
[391165764,1760405440874,-166.66,0.00028528,30]
[391165766,1760405440883,-500.0,0.00028583,7]
[391165769,1760405440892,-150.0,0.00028587,120]
[391165771,1760405440901,-179.0,0.00028597,120]
[391165773,1760405440910,-152.0,0.00028756,7]
[391165775,1760405440919,-1451.6,0.00028767,60]
[391165777,1760405440928,-1451.6,0.00028767,60]
[391165779,1760405440937,-1451.6,0.00028767,60]
[391165782,1760405440947,-1451.6,0.00028767,60]
[391165785,1760405440956,-1451.6,0.00028767,60]
[391165788,1760405440965,-1451.6,0.00028767,60]
[391165791,1760405440974,-1451.6,0.00028767,60]
[391165794,1760405440983,-1451.6,0.00028767,60]
[391165797,1760405440996,-1451.6,0.00028767,60]
[391165800,1760405441006,-1451.6,0.00028767,60]
[391165803,1760405441015,-1451.6,0.00028767,60]
[391165806,1760405441025,-1451.6,0.00028767,60]
[391165809,1760405441034,-1451.6,0.00028767,60]
[391165813,1760405441044,-1451.6,0.00028767,60]
[391165815,1760405441053,-1451.6,0.00028767,60]
[391165818,1760405441062,-1451.6,0.00028767,60]
[391165821,1760405441071,-1451.6,0.00028767,60]
[391165824,1760405441080,-1451.6,0.00028767,60]
[391165826,1760405441090,-1451.6,0.00028767,60]
[391165829,1760405441099,-1451.6,0.00028767,60]
[391165832,1760405441110,-1451.6,0.00028767,60]
[391165835,1760405441119,-1451.6,0.00028767,60]
[391165837,1760405441128,-1451.6,0.00028767,60]
[391165840,1760405441137,-1451.79586986,0.00028767,60]
[391165843,1760405441147,-1475.0,0.00028768,7]
[391165846,1760405441156,-2561.31393384,0.00028782,2]
[391165848,1760405441165,-1207.48,0.00028795,2]
[391165851,1760405441174,-474.51,0.00028795,2]
[391165854,1760405441183,-474.51,0.00028795,2]
[391165856,1760405441192,-474.51,0.00028795,2]
[391165859,1760405441201,-472.91,0.00028795,2]
[391165862,1760405441215,-173.336434,0.00028832,2]
[391165865,1760405441224,-1100.0,0.00028857,7]
[391165868,1760405441233,-300.0,0.00028863,7]
[391165871,1760405441242,-300.0,0.00028863,7]
[391165873,1760405441251,-953.0,0.00028923,7]
[391165876,1760405441262,-175.94,0.00028932,2]
[391165879,1760405441272,-150.0,0.00028932,2]
[391165881,1760405441281,-168.14,0.00028932,2]
[391165883,1760405441290,-150.0,0.00028932,2]
[391165885,1760405441298,-150.0,0.00028932,2]
[391165887,1760405441307,-150.0,0.00028932,2]
[391165889,1760405441317,-175.94,0.00028932,2]
[391165891,1760405441327,-413.39,0.00028932,2]
[391165893,1760405441336,-150.0,0.00028932,2]
[391165895,1760405441345,-168.14,0.00028932,2]
[391165897,1760405441356,-413.39,0.00028932,2]
[391165899,1760405441365,-175.94,0.00028932,2]
[391165901,1760405441373,-150.0,0.00028932,2]
[391165903,1760405441383,-175.94,0.00028932,2]
[391165905,1760405441393,-150.0,0.00028932,2]
[391165907,1760405441402,-150.0,0.00028932,2]
[391165909,1760405441412,-168.14,0.00028932,2]
[391165911,1760405441423,-546.38,0.00028932,2]
[391165913,1760405441433,-300.0,0.00028932,2]
[391165915,1760405441443,-413.39,0.00028932,2]
[391165918,1760405441452,-175.94,0.00028932,2]
[391165920,1760405441462,-546.38,0.00028932,2]
[391165922,1760405441471,-546.38,0.00028932,2]
[391165924,1760405441481,-174.29,0.00028932,2]
[391165926,1760405441492,-546.38,0.00028932,2]
[391165928,1760405441502,-175.94,0.00028932,2]
[391165930,1760405441511,-178.05,0.00028932,2]
[391165932,1760405441520,-283.47,0.00028932,2]
[391165934,1760405441529,-23742.71246203,0.00029,2]
[391165935,1760405441540,-300.0,0.00029,7]
[391165938,1760405441550,-300.0,0.00029,7]
[391165940,1760405441559,-5668.58,0.00029009,2]
[391165942,1760405441573,-9999.99,0.00029009,2]
[391165944,1760405441583,-173.33643397,0.00029038,2]
[391165946,1760405441592,-4508.25,0.00029063,7]
[391165947,1760405441601,-226.33459817,0.00029063,7]
[391165950,1760405441612,-208.66386383,0.00029063,7]
[391165952,1760405441625,-500.0,0.00029073,5]
[391165954,1760405441634,-151.0,0.00029079,7]
[391165956,1760405441643,-38834.92692959,0.00029081,8]
[391165958,1760405441656,-788.50317115,0.00029081,8]
[391165961,1760405441673,-457.71504681,0.00029081,8]
[391165963,1760405441684,-3934.90411869,0.00029081,8]
[391166191,1760405443573,-99.23492579,0.00027043,2]
[391166243,1760405444043,-55.62752032,0.00027043,2]
[391166245,1760405444053,-154.86244611,0.00027048,2]
[391166247,1760405444062,-154.86244611,0.00027191,2]
[391166248,1760405444072,-120.6727743,0.00028932,2]
[391166483,1760405446371,-55.2672257,0.00028932,2]
[391166485,1760405446381,-16822.4657301,0.00029081,8]
[391166489,1760405446409,-23868.25560884,0.00029081,8]
[391166500,1760405446504,-6832.94184445,0.00029081,8]
[391166514,1760405446616,-498.99,0.0002852,120]
[391166516,1760405446625,-4047.45075762,0.00029081,8]
[391168912,1760405982057,479.00514493,0.00017,120]
[391168935,1760406568132,-289.66,0.00013699,2]
[391168936,1760406568156,-156.11,0.00014184,2]
[391168937,1760406568177,-195.0,0.00015068,2]
[391168938,1760406568198,-257.18777651,0.00015068,2]
[391168939,1760406568218,-2532.78712535,0.00015068,2]
[391168940,1760406568239,-195.0,0.00015068,2]
[391168941,1760406568260,-250.0,0.00015068,2]
[391168942,1760406568280,-308.47604645,0.00015068,2]
[391168943,1760406568301,-450.4240332,0.000157,2]
[391168946,1760406631583,-73.93266172,0.000157,2]
[391168947,1760406631592,-156.11,0.00017021,2]
[391168948,1760406631601,-475.0536746,0.00018835,2]
[391168949,1760406631610,-156.11,0.00019858,2]
[391168950,1760406631620,-289.66,0.00020187,2]
[391168951,1760406631629,-301.0,0.00022,2]
[391168952,1760406631638,-156.11,0.00022694,2]
[391168953,1760406631647,-426.16695668,0.00023999,2]
[391168954,1760406631662,-773.83304332,0.00023999,2]
[391168955,1760406631671,-3651.0,0.00024,2]
[391168956,1760406631681,-246.78018102,0.00024,2]
[391168957,1760406631690,-370.17027154,0.00024763,2]
[391168958,1760406631699,-2060.02,0.0002498,2]
[391168959,1760406631708,-299.99,0.0002498,7]
[391168960,1760406631717,-218.69614647,0.00024985,2]
[391168961,1760406631727,-7421.58400515,0.00025,2]
[391168962,1760406631736,-246.78018103,0.00025526,3]
[391168963,1760406631746,-156.11,0.00025531,2]
[391168964,1760406631755,-2751.0,0.00025917,2]
[391168965,1760406631766,-250.0,0.00025942,7]
[391168966,1760406631775,-151.0,0.00025982,2]
[391168968,1760406631784,-287.9102112,0.00026289,5]
[391168970,1760406631793,-289.66,0.00026676,2]
[391168971,1760406631803,-156.63292483,0.00026704,4]
[391168972,1760406631812,-171.90233703,0.00026704,4]
[391168973,1760406631821,-153.90841047,0.00026704,4]
[391168974,1760406631830,-150.0,0.00026704,4]
[391168976,1760406631839,-152.81974969,0.00026704,4]
[391168977,1760406631848,-787.29,0.00026775,2]
[391168979,1760406631858,-455.0,0.00026775,2]
[391168981,1760406631869,-168.0,0.00026923,2]
[391168983,1760406631878,-154.57,0.00026929,2]
[391168985,1760406631887,-200.0,0.00026936,2]
[391168987,1760406631896,-329.04024137,0.00027052,6]
[391168989,1760406631905,-168.0,0.00027075,2]
[391168991,1760406631914,-168.0,0.00027176,7]
[391168993,1760406631922,-159.74894389,0.00027396,16]
[391168995,1760406631932,-2979.664,0.00027396,16]
[391168997,1760406631942,-1292.5,0.00027397,7]
[391168999,1760406631951,-1292.5,0.00027397,7]
[391169001,1760406631960,-1292.5,0.00027397,7]
[391169003,1760406631970,-500.0,0.00027397,7]
[391169005,1760406631979,-500.0,0.00027397,7]
[391169006,1760406631988,-500.0,0.00027397,7]
[391169007,1760406631997,-500.0,0.00027397,7]
[391169008,1760406632006,-500.0,0.00027397,7]
[391169009,1760406632015,-500.0,0.00027397,7]
[391169010,1760406632024,-647.19,0.00027397,7]
[391169011,1760406632033,-647.19,0.00027397,7]
[391169012,1760406632042,-647.19,0.00027397,7]
[391169013,1760406632050,-500.0,0.00027397,7]
[391169014,1760406632061,-174.50842999,0.00027397,7]
[391169015,1760406632070,-604.58,0.00027397,7]
[391169016,1760406632079,-604.58,0.00027397,7]
[391169017,1760406632436,-604.58,0.00027397,7]
[391169018,1760406632457,-500.0,0.00027397,7]
[391169019,1760406632467,-500.0,0.00027397,7]
[391169020,1760406632476,-500.0,0.00027397,7]
[391169021,1760406632486,-500.0,0.00027397,7]
[391169022,1760406632495,-500.0,0.00027397,7]
[391169023,1760406632503,-500.0,0.00027397,7]
[391169024,1760406632513,-699.88,0.00027397,7]
[391169025,1760406632522,-699.88,0.00027397,7]
[391169026,1760406632531,-699.88,0.00027397,7]
[391169027,1760406632540,-500.0,0.00027397,7]
[391169028,1760406632549,-500.0,0.00027397,7]
[391169029,1760406632558,-527.59601717,0.00027397,7]
[391169030,1760406632567,-520.63,0.00027397,2]
[391169031,1760406632577,-603.17,0.00027484,2]
[391169032,1760406632586,-1055.0,0.00027751,2]
[391169033,1760406632595,-800.0,0.00027761,7]
[391169034,1760406632605,-370.17027154,0.00027815,8]
[391169035,1760406632614,-173.0,0.00027861,2]
[391169036,1760406632622,-1055.0,0.00027996,7]
[391169037,1760406632632,-168.0,0.00028014,2]
[391169038,1760406632643,-502.58093641,0.00028035,7]
[391169039,1760406632652,-1100.0,0.00028035,7]
[391169040,1760406632662,-155.512,0.00028053,2]
[391169041,1760406632671,-1000.0,0.00028054,2]
[391169042,1760406632680,-1000.0,0.00028054,2]
[391169043,1760406632690,-151.57990121,0.00028054,2]
[391169044,1760406632699,-1000.0,0.00028054,2]
[391169045,1760406632708,-1000.0,0.00028054,2]
[391169046,1760406632717,-152.03443234,0.00028054,2]
[391169047,1760406632727,-1000.0,0.00028054,2]
[391169048,1760406632736,-1000.0,0.00028054,2]
[391169049,1760406632746,-1000.0,0.00028054,2]
[391169050,1760406632755,-1000.0,0.00028054,2]
[391169051,1760406632765,-152.48180491,0.00028054,2]
[391169052,1760406632775,-152.44227839,0.00028054,2]
[391169053,1760406632784,-1000.0,0.00028054,2]
[391169054,1760406632793,-693.3919763,0.00028054,2]
[391169055,1760406632802,-1000.0,0.00028054,2]
[391169056,1760406632812,-1000.0,0.00028054,2]
[391169057,1760406632821,-1000.0,0.00028054,2]
[391169058,1760406632830,-1000.0,0.00028054,2]
[391169059,1760406632840,-1000.0,0.00028054,2]
[391169060,1760406632849,-721.12765535,0.00028054,2]
[391169061,1760406632860,-9552.16786547,0.00028054,2]
[391169062,1760406632871,-1000.0,0.00028054,2]
[391169063,1760406632880,-1000.0,0.00028054,2]
[391169064,1760406632889,-1000.0,0.00028054,2]
[391169065,1760406632899,-951.23195266,0.00028054,2]
[391169066,1760406632908,-500.0,0.00028054,2]
[391169067,1760406632917,-500.0,0.00028054,2]
[391169068,1760406632926,-1000.0,0.00028054,2]
[391169069,1760406632938,-500.0,0.00028054,2]
[391169070,1760406632947,-296.94724852,0.00028054,2]
[391169071,1760406632957,-1000.0,0.00028054,2]
[391169072,1760406632966,-500.0,0.00028054,2]
[391169073,1760406632976,-1000.0,0.00028054,2]
[391169074,1760406632985,-500.0,0.00028054,2]
[391169075,1760406632995,-1000.0,0.00028054,2]
[391169076,1760406633005,-500.0,0.00028054,2]
[391169077,1760406633015,-500.0,0.00028054,2]
[391169078,1760406633024,-1000.0,0.00028054,2]
[391169079,1760406633034,-500.0,0.00028054,2]
[391169080,1760406633043,-559.55716253,0.00028054,2]
[391169081,1760406633052,-1000.0,0.00028054,2]
[391169082,1760406633062,-500.0,0.00028054,2]
[391169083,1760406633072,-550.6304507,0.00028054,2]
[391169084,1760406633081,-152.02860248,0.00028054,2]
[391169085,1760406633090,-1000.0,0.00028054,2]
[391169086,1760406633100,-487.0406972,0.00028054,2]
[391169087,1760406633109,-1000.0,0.00028054,2]
[391169088,1760406633119,-500.0,0.00028054,2]
[391169089,1760406633128,-1000.0,0.00028054,2]
[391169090,1760406633138,-1000.0,0.00028054,2]
[391169091,1760406633147,-500.0,0.00028054,2]
[391169092,1760406633156,-1000.0,0.00028054,2]
[391169093,1760406633166,-500.0,0.00028054,2]
[391169094,1760406633175,-2000.0,0.00028054,2]
[391169095,1760406633185,-500.0,0.00028054,2]
[391169096,1760406633194,-2000.0,0.00028054,2]
[391169097,1760406633204,-500.0,0.00028054,2]
[391169098,1760406633214,-2000.0,0.00028054,2]
[391169099,1760406633223,-500.0,0.00028054,2]
[391169100,1760406633232,-2000.0,0.00028054,2]
[391169101,1760406633241,-209.86959516,0.00028054,2]
[391169102,1760406633251,-2000.0,0.00028054,2]
[391169103,1760406633260,-2000.0,0.00028054,2]
[391169104,1760406633269,-1037.89093519,0.00028054,2]
[391169105,1760406633279,-250.0,0.00028054,2]
[391169106,1760406633288,-331.06191742,0.00028054,2]
[391169107,1760406633298,-277.35679052,0.00028054,2]
[391169108,1760406633307,-2000.0,0.00028054,2]
[391169109,1760406633316,-2000.0,0.00028054,2]
[391169110,1760406633326,-2057.91501086,0.00028054,2]
[391169111,1760406633335,-500.0,0.00028063,2]
[391169112,1760406633344,-597.23919202,0.00028063,2]
[391169113,1760406633354,-500.0,0.00028063,2]
[391169114,1760406633363,-500.0,0.00028063,2]
[391169115,1760406633373,-13775.20280855,0.00028064,2]
[391169116,1760406633383,-1778.0,0.00028087,7]
[391169117,1760406633392,-9905.5980765,0.00028109,2]
[391169118,1760406633401,-10272.10520533,0.00028164,2]
[391169119,1760406633411,-553.46517548,0.00028164,2]
[391169120,1760406633420,-10652.17309792,0.00028219,2]
[391169121,1760406633430,-13775.20280852,0.00028235,2]
[391169122,1760406633439,-11046.30350255,0.00028274,2]
[391169123,1760406633450,-553.46517548,0.00028274,2]
[391169124,1760406633460,-175.78,0.00028278,2]
[391169125,1760406633470,-1055.0,0.00028283,2]
[391169126,1760406633479,-7159.32173058,0.00028329,2]
[391169127,1760406633488,-156.11,0.00028368,2]
[391169128,1760406633497,-553.46517548,0.00028384,2]
[391169129,1760406633507,-153.70379472,0.00028401,7]
[391169130,1760406633516,-1247.59,0.00028403,7]
[391169131,1760406633525,-361.0,0.00028404,7]
[391169132,1760406633534,-634.13,0.00028404,7]
[391169133,1760406633544,-829.51,0.00028404,7]
[391169134,1760406633553,-500.0,0.00028404,7]
[391169135,1760406633562,-523.20658093,0.00028404,7]
[391169136,1760406633571,-500.0,0.00028404,7]
[391169137,1760406633580,-500.0,0.00028404,7]
[391169138,1760406633589,-500.0,0.00028404,7]
[391169139,1760406633598,-500.0,0.00028404,7]
[391169140,1760406633607,-749.77,0.00028404,7]
[391169141,1760406633616,-500.0,0.00028404,7]
[391169142,1760406633626,-519.05,0.00028404,7]
[391169143,1760406633635,-641.13,0.00028404,7]
[391169144,1760406633644,-500.0,0.00028404,7]
[391169145,1760406633653,-1064.39,0.00028404,7]
[391169146,1760406633663,-647.77,0.00028404,7]
[391169147,1760406633672,-500.0,0.00028404,7]
[391169148,1760406633681,-500.0,0.00028404,7]
[391169149,1760406633689,-503.51,0.00028404,7]
[391169150,1760406633698,-500.0,0.00028404,7]
[391169151,1760406633707,-500.0,0.00028404,7]
[391169152,1760406633716,-500.0,0.00028404,7]
[391169153,1760406633726,-500.0,0.00028404,7]
[391169154,1760406633735,-500.0,0.00028404,7]
[391169155,1760406633744,-500.0,0.00028404,7]
[391169156,1760406633754,-500.0,0.00028404,7]
[391169157,1760406633763,-798.23,0.00028404,7]
[391169158,1760406633772,-1270.88,0.00028404,7]
[391169159,1760406633781,-500.0,0.00028404,7]
[391169160,1760406633790,-500.0,0.00028404,7]
[391169161,1760406633799,-1690.28,0.00028404,7]
[391169162,1760406633808,-500.0,0.00028404,7]
[391169163,1760406633818,-1676.35,0.00028404,7]
[391169164,1760406633828,-500.0,0.00028404,7]
[391169165,1760406633838,-500.0,0.00028404,7]
[391169166,1760406633848,-500.0,0.00028404,7]
[391169167,1760406633860,-669.18,0.00028404,7]
[391169168,1760406633870,-500.0,0.00028404,7]
[391169169,1760406633879,-500.0,0.00028404,7]
[391169170,1760406633888,-500.0,0.00028404,7]
[391169171,1760406633901,-989.52,0.00028404,7]
[391169172,1760406633910,-500.0,0.00028404,7]
[391169173,1760406633920,-1383.96,0.00028404,7]
[391169174,1760406633931,-500.0,0.00028404,7]
[391169175,1760406633943,-500.0,0.00028404,7]
[391169176,1760406633954,-500.0,0.00028404,7]
[391169177,1760406633963,-1064.26,0.00028404,7]
[391169178,1760406633972,-580.22,0.00028404,7]
[391169179,1760406633981,-500.0,0.00028404,7]
[391169180,1760406633990,-500.0,0.00028404,7]
[391169181,1760406633999,-500.0,0.00028404,7]
[391169182,1760406634009,-500.0,0.00028404,7]
[391169183,1760406634020,-1844.75,0.00028404,7]
[391169184,1760406634030,-500.0,0.00028404,7]
[391169185,1760406634040,-500.0,0.00028404,7]
[391169186,1760406634048,-500.0,0.00028404,7]
[391169187,1760406634059,-500.0,0.00028404,7]
[391169188,1760406634069,-576.18,0.00028404,7]
[391169189,1760406634078,-500.0,0.00028404,7]
[391169190,1760406634087,-3870.95,0.00028404,7]
[391169191,1760406634096,-1077.71,0.00028404,7]
[391169192,1760406634105,-773.84,0.00028404,7]
[391169193,1760406634114,-500.0,0.00028404,7]
[391169194,1760406634124,-500.0,0.00028404,7]
[391169195,1760406634135,-13775.20280852,0.00028405,2]
[391169196,1760406634145,-154.57,0.00028425,2]
[391169197,1760406634154,-553.46517548,0.00028493,2]
[391169198,1760406634164,-1513.03503804,0.000285,12]
[391169199,1760406634173,-500.0,0.00028575,7]
[391169200,1760406634183,-500.0,0.00028575,7]
[391169201,1760406634192,-706.75,0.00028575,7]
[391169202,1760406634201,-500.0,0.00028575,7]
[391169203,1760406634210,-830.21,0.00028575,7]
[391169204,1760406634219,-500.0,0.00028575,7]
[391169205,1760406634228,-500.0,0.00028575,7]
[391169206,1760406634237,-500.0,0.00028575,7]
[391169207,1760406634247,-13775.20280852,0.00028576,2]
[391169208,1760406634256,-411.30030172,0.00028578,10]
[391169209,1760406634265,-800.0,0.00028583,7]
[391169210,1760406634275,-553.46517548,0.00028603,2]
[391169211,1760406634284,-302.19,0.00028658,2]
[391169212,1760406634293,-2958.92448713,0.00028735,2]
[391169213,1760406634303,-553.46517548,0.0002874,2]
[391169214,1760406634312,-13775.20280852,0.00028747,2]
[391169215,1760406634321,-1365.5049,0.0002875,2]
[391169216,1760406634330,-939.47649309,0.00028782,2]
[391169217,1760406634344,-1208.4513586,0.00028782,2]
[391169218,1760406634353,-1778.0,0.00028788,2]
[391169219,1760406634362,-816.28,0.00028795,2]
[391169220,1760406634371,-1904.0,0.000288,2]
[391169221,1760406634380,-876.85966555,0.00028807,2]
[391169222,1760406634389,-553.46517548,0.00028849,2]
[391169223,1760406634398,-1100.0,0.00028857,7]
[391169224,1760406634407,-2237.08302358,0.00028917,2]
[391169225,1760406634418,-11538.11978494,0.00028917,2]
[391169226,1760406634427,-553.46517548,0.00028959,2]
[391169227,1760406634436,-198.53500248,0.00028968,2]
[391169228,1760406634445,-5204.05115836,0.00028982,2]
[391169229,1760406634454,-13109.97337492,0.00029,4]
[391169230,1760406634464,-1513.34,0.00029044,7]
[391169231,1760406634473,-635.72,0.00029044,7]
[391169232,1760406634482,-500.0,0.00029044,7]
[391169233,1760406634491,-500.0,0.00029044,7]
[391169234,1760406634500,-500.0,0.00029044,7]
[391169235,1760406634508,-500.0,0.00029044,7]
[391169236,1760406634517,-500.0,0.00029044,7]
[391169237,1760406634527,-500.0,0.00029044,7]
[391169238,1760406634536,-500.0,0.00029044,7]
[391169239,1760406634545,-500.0,0.00029044,7]
[391169240,1760406634554,-500.0,0.00029044,7]
[391169241,1760406634563,-727.5,0.00029044,7]
[391169242,1760406634572,-500.0,0.00029044,7]
[391169243,1760406634581,-500.0,0.00029044,7]
[391169244,1760406634590,-500.0,0.00029044,7]
[391169245,1760406634599,-500.0,0.00029044,7]
[391169246,1760406634608,-500.0,0.00029044,7]
[391169247,1760406634617,-500.0,0.00029044,7]
[391169248,1760406634626,-500.0,0.00029044,7]
[391169249,1760406634635,-500.0,0.00029044,7]
[391169250,1760406634644,-500.0,0.00029044,7]
[391169251,1760406634654,-500.0,0.00029044,7]
[391169252,1760406634662,-500.0,0.00029044,7]
[391169253,1760406634671,-500.0,0.00029044,7]
[391169254,1760406634680,-500.0,0.00029044,7]
[391169255,1760406634690,-1558.87,0.00029044,7]
[391169256,1760406634699,-751.92,0.00029044,7]
[391169257,1760406634709,-500.0,0.00029044,7]
[391169258,1760406634718,-500.0,0.00029044,7]
[391169259,1760406634727,-500.0,0.00029044,7]
[391169260,1760406634735,-1114.81,0.00029044,7]
[391169261,1760406634744,-1319.8,0.00029044,7]
[391169262,1760406634753,-821.23,0.00029044,7]
[391169263,1760406634763,-960.28,0.00029044,7]
[391169264,1760406634772,-1075.52,0.00029044,7]
[391169265,1760406634780,-526.18,0.00029044,7]
[391169266,1760406634789,-601.6,0.00029044,7]
[391169267,1760406634799,-500.0,0.00029044,7]
[391169268,1760406634808,-691.78,0.00029044,7]
[391169269,1760406634817,-500.0,0.00029044,7]
[391169270,1760406634827,-500.0,0.00029044,7]
[391169271,1760406634836,-500.0,0.00029044,7]
[391169272,1760406634845,-500.0,0.00029044,7]
[391169273,1760406634854,-1119.17,0.00029044,7]
[391169274,1760406634867,-500.0,0.00029044,7]
[391169275,1760406634877,-500.0,0.00029044,7]
[391169276,1760406634886,-610.84,0.00029044,7]
[391169277,1760406634895,-500.0,0.00029044,7]
[391169278,1760406634904,-500.0,0.00029044,7]
[391169279,1760406634913,-781.82,0.00029044,7]
[391169280,1760406634922,-699.45,0.00029044,7]
[391169281,1760406634931,-500.0,0.00029044,7]
[391169282,1760406634941,-500.0,0.00029044,7]
[391169283,1760406634950,-500.0,0.00029044,7]
[391169284,1760406634959,-500.0,0.00029044,7]
[391169285,1760406634968,-693.64,0.00029044,7]
[391169286,1760406634977,-500.0,0.00029044,7]
[391169287,1760406634986,-500.0,0.00029044,7]
[391169288,1760406634996,-839.79,0.00029044,7]
[391169289,1760406635005,-500.0,0.00029044,7]
[391169290,1760406635014,-711.99,0.00029044,7]
[391169291,1760406635023,-1478.17,0.00029044,7]
[391169292,1760406635032,-500.0,0.00029044,7]
[391169293,1760406635041,-501.73,0.00029044,7]
[391169294,1760406635050,-500.0,0.00029044,7]
[391169295,1760406635059,-539.33,0.00029044,7]
[391169296,1760406635068,-500.0,0.00029044,7]
[391169297,1760406635079,-448.65039846,0.00029044,7]
[391169298,1760406635088,-500.0,0.00029044,7]
[391169299,1760406635096,-500.0,0.00029044,7]
[391169300,1760406635105,-554.47,0.00029044,7]
[391169301,1760406635113,-500.0,0.00029044,7]
[391169302,1760406635122,-1600.42,0.00029044,7]
[391169303,1760406635130,-500.0,0.00029044,7]
[391169304,1760406635139,-724.53,0.00029044,7]
[391169305,1760406635147,-500.0,0.00029044,7]
[391169306,1760406635155,-500.0,0.00029044,7]
[391169307,1760406635164,-800.62,0.00029044,7]
[391169308,1760406635173,-500.0,0.00029044,7]
[391169309,1760406635182,-500.0,0.00029044,7]
[391169310,1760406635192,-500.0,0.00029044,7]
[391169311,1760406635201,-1081.45,0.00029044,7]